fUSD/lending_fUSD_20240212
["ID","MTS","AMOUNT","RATE_DAILY","PERIOD"]
[313799253,1707730242978,-595.0,0.00022611,2]
[313799254,1707730242988,-737.83,0.00022611,2]
[313799255,1707730242997,-500.0,0.00022611,2]
[313799256,1707730243006,-500.0,0.00022611,2]
[313799257,1707730243015,-718.26,0.00022611,2]
[313799258,1707730243025,-500.0,0.00022611,2]
[313799259,1707730243034,-500.0,0.00022611,2]
[313799260,1707730243043,-500.0,0.00022611,2]
[313799261,1707730243052,-652.71,0.00022611,2]
[313799262,1707730243061,-500.0,0.00022611,2]
[313799264,1707730243070,-893.62,0.00022611,2]
[313799265,1707730243080,-516.23,0.00022611,2]
[313799266,1707730243091,-500.0,0.00022611,2]
[313799267,1707730243100,-500.0,0.00022611,2]
[313799268,1707730243109,-965.76,0.00022611,2]
[313799269,1707730243119,-604.32,0.00022611,2]
[313799272,1707730243127,-500.0,0.00022611,2]
[313799275,1707730243137,-500.0,0.00022611,2]
[313799278,1707730243146,-500.0,0.00022611,2]
[313799281,1707730243156,-500.0,0.00022611,2]
[313799284,1707730243167,-552.15,0.00022611,2]
[313799286,1707730243177,-568.59,0.00022611,2]
[313799288,1707730243186,-500.0,0.00022611,2]
[313799289,1707730243196,-500.0,0.00022611,2]
[313799290,1707730243206,-500.0,0.00022611,2]
[313799291,1707730243215,-500.0,0.00022611,2]
[313799292,1707730243224,-804.98,0.00022611,2]
[313799293,1707730243233,-500.0,0.00022611,2]
[313799295,1707730243241,-500.0,0.00022611,2]
[313799296,1707730243251,-744.14,0.00022611,2]
[313799297,1707730243260,-500.0,0.00022611,2]
[313799298,1707730243269,-500.0,0.00022611,2]
[313799299,1707730243279,-500.0,0.00022611,2]
[313799300,1707730243288,-695.43,0.00022611,2]
[313799301,1707730243297,-500.0,0.00022611,2]
[313799302,1707730243305,-500.0,0.00022611,2]
[313799303,1707730243314,-500.0,0.00022611,2]
[313799304,1707730243323,-647.53,0.00022611,2]
[313799305,1707730243332,-500.0,0.00022611,2]
[313799306,1707730243341,-500.0,0.00022611,2]
[313799307,1707730243350,-500.0,0.00022611,2]
[313799308,1707730243358,-500.0,0.00022611,2]
[313799309,1707730243367,-870.59,0.00022611,2]
[313799310,1707730243376,-500.0,0.00022611,2]
[313799311,1707730243385,-500.0,0.00022611,2]
[313799312,1707730243395,-1163.46,0.00022611,2]
[313799313,1707730243404,-500.0,0.00022611,2]
[313799314,1707730243412,-312.18958839,0.00022611,2]
[313799315,1707730243422,-1253.4,0.00022611,2]
[313799316,1707730243431,-1039.81,0.00022611,2]
[313799317,1707730243440,-500.0,0.00022611,2]
[313799318,1707730243449,-500.0,0.00022611,2]
[313799319,1707730243459,-500.0,0.00022611,2]
[313799320,1707730243467,-888.78,0.00022611,2]
[313799321,1707730243477,-500.0,0.00022611,2]
[313799322,1707730243486,-500.0,0.00022611,2]
[313799323,1707730243495,-1327.03,0.00022611,2]
[313799324,1707730243504,-916.23,0.00022611,2]
[313799325,1707730243513,-500.0,0.00022611,2]
[313799326,1707730243522,-500.0,0.00022611,2]
[313799327,1707730243531,-611.8,0.00022611,2]
[313799328,1707730243540,-531.5,0.00022611,2]
[313799329,1707730243549,-250.0,0.00022611,2]
[313799330,1707730243558,-688.23,0.00022611,2]
[313799331,1707730243567,-500.0,0.00022611,2]
[313799332,1707730243576,-500.0,0.00022611,2]
[313799333,1707730243585,-500.0,0.00022611,2]
[313799334,1707730243594,-500.0,0.00022611,2]
[313799335,1707730243603,-1045.19,0.00022611,2]
[313799336,1707730243612,-500.0,0.00022611,2]
[313799337,1707730243621,-500.0,0.00022611,2]
[313799338,1707730243630,-681.54,0.00022611,2]
[313799339,1707730243639,-500.0,0.00022611,2]
[313799340,1707730243648,-500.0,0.00022611,2]
[313799341,1707730243657,-484.34881809,0.00022611,2]
[313799342,1707730243666,-500.0,0.00022611,2]
[313799343,1707730243675,-513.14,0.00022611,2]
[313799344,1707730243684,-500.0,0.00022611,2]
[313799345,1707730243692,-500.0,0.00022611,2]
[313799346,1707730243701,-500.0,0.00022611,2]
[313799347,1707730243710,-500.0,0.00022611,2]
[313799348,1707730243719,-500.0,0.00022611,2]
[313799349,1707730243729,-500.0,0.00022611,2]
[313799350,1707730243737,-500.0,0.00022611,2]
[313799351,1707730243746,-500.0,0.00022611,2]
[313799352,1707730243755,-500.0,0.00022611,2]
[313799353,1707730243764,-500.0,0.00022611,2]
[313799354,1707730243773,-500.0,0.00022611,2]
[313799355,1707730243783,-500.0,0.00022611,2]
[313799356,1707730243792,-500.0,0.00022611,2]
[313799357,1707730243802,-500.0,0.00022611,2]
[313799358,1707730243811,-150.0,0.00022611,2]
[313799359,1707730243820,-500.0,0.00022611,2]
[313799360,1707730243829,-541.37,0.00022611,2]
[313799361,1707730243839,-500.0,0.00022611,2]
[313799362,1707730243847,-500.0,0.00022611,2]
[313799363,1707730243857,-500.0,0.00022611,2]
[313799364,1707730243866,-486.28842904,0.00022611,2]
[313799365,1707730243875,-500.0,0.00022611,2]
[313799366,1707730243885,-500.0,0.00022611,2]
[313799367,1707730243894,-500.0,0.00022611,2]
[313799368,1707730243902,-500.0,0.00022611,2]
[313799369,1707730243912,-500.0,0.00022611,2]
[313799370,1707730243921,-1325.71,0.00022611,2]
[313799371,1707730243931,-500.0,0.00022611,2]
[313799372,1707730243940,-500.0,0.00022611,2]
[313799373,1707730243949,-500.0,0.00022611,2]
[313799374,1707730243959,-500.0,0.00022611,2]
[313799375,1707730243969,-500.0,0.00022611,2]
[313799376,1707730243978,-500.0,0.00022611,2]
[313799377,1707730243987,-500.0,0.00022611,2]
[313799378,1707730243996,-500.0,0.00022611,2]
[313799379,1707730244005,-500.0,0.00022611,2]
[313799380,1707730244015,-500.0,0.00022611,2]
[313799381,1707730244024,-517.13,0.00022611,2]
[313799382,1707730244034,-500.0,0.00022611,2]
[313799383,1707730244044,-500.0,0.00022611,2]
[313799384,1707730244052,-500.0,0.00022611,2]
[313799385,1707730244062,-500.0,0.00022611,2]
[313799386,1707730244072,-500.0,0.00022611,2]
[313799387,1707730244083,-394.32,0.00022611,2]
[313799388,1707730244092,-500.0,0.00022611,2]
[313799389,1707730244101,-500.0,0.00022611,2]
[313799390,1707730244111,-500.0,0.00022611,2]
[313799391,1707730244120,-500.0,0.00022611,2]
[313799392,1707730244130,-500.0,0.00022611,2]
[313799393,1707730244139,-500.0,0.00022611,2]
[313799394,1707730244149,-1168.53,0.00022611,2]
[313799395,1707730244158,-563.81,0.00022611,2]
[313799396,1707730244167,-500.0,0.00022611,2]
[313799397,1707730244178,-1076.8,0.00022611,2]
[313799398,1707730244187,-500.0,0.00022611,2]
[313799399,1707730244196,-500.0,0.00022611,2]
[313799400,1707730244206,-500.0,0.00022611,2]
[313799401,1707730244215,-1247.97,0.00022611,2]
[313799402,1707730244224,-500.0,0.00022611,2]
[313799403,1707730244233,-163.64095752,0.00022611,2]
[313799404,1707730244242,-500.0,0.00022611,2]
[313799405,1707730244252,-500.0,0.00022611,2]
[313799406,1707730244261,-500.0,0.00022611,2]
[313799407,1707730244270,-926.56,0.00022611,2]
[313799408,1707730244279,-2132.43,0.00022611,2]
[313799409,1707730244288,-719.36,0.00022611,2]
[313799410,1707730244299,-500.0,0.00022611,2]
[313799411,1707730244308,-500.0,0.00022611,2]
[313799412,1707730244317,-500.0,0.00022611,2]
[313799413,1707730244326,-500.0,0.00022611,2]
[313799414,1707730244335,-500.0,0.00022611,2]
[313799415,1707730244344,-1188.62,0.00022611,2]
[313799416,1707730244353,-678.8,0.00022611,2]
[313799417,1707730244362,-500.0,0.00022611,2]
[313799418,1707730244371,-938.32,0.00022611,2]
[313799419,1707730244380,-500.0,0.00022611,2]
[313799420,1707730244389,-500.0,0.00022611,2]
[313799421,1707730244398,-4275.09,0.00022611,2]
[313799422,1707730244407,-500.0,0.00022611,2]
[313799423,1707730244627,-500.0,0.00022611,2]
[313799424,1707730244646,-500.0,0.00022611,2]
[313799425,1707730244655,-3275.75,0.00022611,2]
[313799426,1707730244665,-500.0,0.00022611,2]
[313799427,1707730244674,-500.0,0.00022611,2]
[313799428,1707730244682,-500.0,0.00022611,2]
[313799429,1707730244691,-797.78,0.00022611,2]
[313799430,1707730244700,-500.0,0.00022611,2]
[313799431,1707730244710,-500.0,0.00022611,2]
[313799432,1707730244718,-500.0,0.00022611,2]
[313799433,1707730244727,-741.16,0.00022611,2]
[313799434,1707730244736,-664.0,0.00022611,2]
[313799435,1707730244745,-500.0,0.00022611,2]
[313799436,1707730244754,-839.62,0.00022611,2]
[313799437,1707730244763,-500.0,0.00022611,2]
[313799438,1707730244772,-606.72,0.00022611,2]
[313799439,1707730244781,-500.0,0.00022611,2]
[313799440,1707730244790,-500.0,0.00022611,2]
[313799441,1707730244799,-586.65,0.00022611,2]
[313799442,1707730244808,-500.0,0.00022611,2]
[313799443,1707730244817,-1786.41,0.00022611,2]
[313799444,1707730244826,-1149.6,0.00022611,2]
[313799445,1707730244835,-512.83,0.00022611,2]
[313799446,1707730244844,-1861.8,0.00022611,2]
[313799447,1707730244853,-2912.63,0.00022611,2]
[313799448,1707730244862,-500.0,0.00022611,2]
[313799449,1707730244871,-860.54,0.00022611,2]
[313799450,1707730244880,-1646.77,0.00022611,2]
[313799451,1707730244891,-500.0,0.00022611,2]
[313799452,1707730244899,-500.0,0.00022611,2]
[313799453,1707730244908,-12403.79,0.00022611,2]
[313799454,1707730244918,-500.0,0.00022611,2]
[313799455,1707730244927,-500.0,0.00022611,2]
[313799456,1707730244936,-768.35,0.00022611,2]
[313799457,1707730244945,-500.0,0.00022611,2]
[313799458,1707730244954,-500.0,0.00022611,2]
[313799459,1707730244963,-500.0,0.00022611,2]
[313799460,1707730244972,-500.0,0.00022611,2]
[313799461,1707730244981,-500.0,0.00022611,2]
[313799462,1707730244990,-851.73,0.00022611,2]
[313799463,1707730244999,-1977.49,0.00022611,2]
[313799464,1707730245009,-620.89147407,0.00022611,2]
[313799465,1707730245030,-247.19852593,0.00022611,2]
[313799466,1707730245039,-500.0,0.00022611,2]
[313799467,1707730245048,-724.63,0.00022611,2]
[313799468,1707730245057,-500.0,0.00022611,2]
[313799469,1707730245066,-500.0,0.00022611,2]
[313799470,1707730245077,-2585.66,0.00022611,2]
[313799471,1707730245088,-500.0,0.00022611,2]
[313799472,1707730245097,-530.97,0.00022611,2]
[313799473,1707730245106,-661.01,0.00022611,2]
[313799474,1707730245115,-725.31828018,0.00022611,2]
[313799475,1707730245127,-102.75171982,0.00022611,2]
[313799476,1707730245136,-733.98,0.00022611,2]
[313799477,1707730245145,-500.0,0.00022611,2]
[313799478,1707730245155,-604.58,0.00022611,2]
[313799479,1707730245166,-886.70623929,0.00022611,2]
[313799480,1707730245177,-422.22376071,0.00022611,2]
[313799481,1707730245186,-77.77623929,0.00022611,2]
[313799482,1707730245197,-567.38376071,0.00022611,2]
[313799483,1707730245207,-156.53942686,0.00022611,2]
[313799484,1707730245219,-343.46057314,0.00022611,2]
[313799485,1707730245228,-500.0,0.00022611,2]
[313799486,1707730245238,-500.0,0.00022611,2]
[313799487,1707730245247,-859.93942686,0.00022611,2]
[313799488,1707730245278,-102.10057314,0.00022611,2]
[313799489,1707730245287,-308.34829223,0.00022611,2]
[313799490,1707730245299,-262.28170777,0.00022611,2]
[313799491,1707730245308,-500.0,0.00022611,2]
[313799492,1707730245317,-122.76350796,0.00022611,2]
[313799514,1707730246858,-262.41702989,0.00022609,2]
[313799515,1707730246869,-18.147785,0.00022609,2]
[313799516,1707730246879,-500.0,0.0002261,2]
[313799517,1707730246888,-377.23649204,0.00022611,2]
[313799518,1707730246897,-372.15202063,0.00022611,2]
[313799519,1707730246909,-127.84797937,0.00022611,2]
[313799520,1707730246918,-383.45795329,0.00022611,2]
[313799521,1707730246934,-116.54204671,0.00022611,2]
[313799522,1707730246943,-500.0,0.00022611,2]
[313799523,1707730246953,-409.59645248,0.00022611,2]
[313799524,1707730246965,-90.40354752,0.00022611,2]
[313799525,1707730246975,-2857.02545273,0.00022611,2]
[313799526,1707730246986,-654.09454727,0.00022611,2]
[313799527,1707730246995,-1012.36,0.00022611,2]
[313799528,1707730247004,-915.05,0.00022611,2]
[313799529,1707730247013,-396.14025253,0.00022611,2]
[313799530,1707730247025,-2259.23974747,0.00022611,2]
[313799531,1707730247034,-500.0,0.00022611,2]
[313799532,1707730247044,-500.0,0.00022611,2]
[313799533,1707730247053,-2433.30472333,0.00022611,2]
[313799534,1707730247120,-472.09527667,0.00022611,2]
[313799535,1707730247129,-2367.17,0.00022611,2]
[313799536,1707730247139,-500.0,0.00022611,2]
[313799537,1707730247148,-523.43315835,0.00022611,2]
[313799538,1707730247157,-500.0,0.00022611,2]
[313799539,1707730247169,-887.95,0.00022611,2]
[313799540,1707730247179,-500.0,0.00022611,2]
[313799541,1707730247188,-1788.09,0.00022611,2]
[313799542,1707730247198,-500.0,0.00022611,2]
[313799543,1707730247208,-573.23,0.00022611,2]
[313799544,1707730247217,-1556.45,0.00022611,2]
[313799545,1707730247226,-500.0,0.00022611,2]
[313799546,1707730247235,-774.63305018,0.00022611,2]
[313799547,1707730247277,-192.07694982,0.00022611,2]
[313799548,1707730247286,-500.0,0.00022611,2]
[313799549,1707730247295,-205.95490494,0.00022611,2]
[313799550,1707730247307,-907.69509506,0.00022611,2]
[313799551,1707730247316,-311.36527148,0.00022611,2]
[313799552,1707730247327,-1645.60472852,0.00022611,2]
[313799553,1707730247335,-500.0,0.00022611,2]
[313799554,1707730247345,-605.45,0.00022611,2]
[313799555,1707730247354,-500.0,0.00022611,2]
[313799556,1707730247363,-500.0,0.00022611,2]
[313799557,1707730247372,-101.26781103,0.00022611,2]
[313799558,1707730247436,-398.73218897,0.00022611,2]
[313799559,1707730247444,-500.0,0.00022611,2]
[313799560,1707730247454,-7521.16,0.00022611,2]
[313799561,1707730247464,-500.0,0.00022611,2]
[313799562,1707730247474,-500.0,0.00022611,2]
[313799563,1707730247483,-500.0,0.00022611,2]
[313799564,1707730247492,-500.0,0.00022611,2]
[313799565,1707730247501,-500.0,0.00022611,2]
[313799566,1707730247510,-321.86078074,0.00022611,2]
[313799567,1707730247519,-971.0,0.00022611,2]
[313799568,1707730247528,-410.39269094,0.00022611,2]
[313799569,1707730247537,-500.0,0.00022612,2]
[313799570,1707730247546,-168.18684687,0.00022612,2]
[313799571,1707730247555,-500.0,0.00022612,2]
[313799572,1707730247565,-500.0,0.00022612,2]
[313799573,1707730247574,-500.0,0.00022612,2]
[313799574,1707730247583,-553.55499215,0.00022612,2]
[313799575,1707730247592,-500.0,0.00022612,2]
[313799576,1707730247601,-500.0,0.00022612,2]
[313799577,1707730247611,-643.24,0.00022612,2]
[313799578,1707730247621,-500.0,0.00022612,2]
[313799579,1707730247630,-382.70142721,0.00022612,2]
[313799580,1707730247640,-500.0,0.00022612,2]
[313799581,1707730247650,-500.0,0.00022612,2]
[313799582,1707730247659,-500.0,0.00022612,2]
[313799583,1707730247669,-500.0,0.00022612,2]
[313799584,1707730247679,-500.0,0.00022612,2]
[313799585,1707730247688,-500.0,0.00022612,2]
[313799586,1707730247698,-500.0,0.00022612,2]
[313799587,1707730247707,-500.0,0.00022612,2]
[313799588,1707730247716,-571.94,0.00022612,2]
[313799589,1707730247725,-500.0,0.00022612,2]
[313799590,1707730247736,-500.0,0.00022612,2]
[313799591,1707730247745,-500.0,0.00022612,2]
[313799592,1707730247754,-500.0,0.00022612,2]
[313799593,1707730247763,-718.15,0.00022612,2]
[313799594,1707730247772,-500.0,0.00022612,2]
[313799595,1707730247781,-500.0,0.00022612,2]
[313799596,1707730247790,-500.0,0.00022612,2]
[313799598,1707730247800,-522.83,0.00022612,2]
[313799600,1707730247809,-519.27,0.00022612,2]
[313799602,1707730247818,-500.0,0.00022612,2]
[313799604,1707730247827,-775.2,0.00022612,2]
[313799606,1707730247836,-500.0,0.00022612,2]
[313799608,1707730247845,-680.61,0.00022612,2]
[313799610,1707730247854,-500.0,0.00022612,2]
[313799612,1707730247863,-1007.5,0.00022612,2]
[313799614,1707730247872,-500.0,0.00022612,2]
[313799616,1707730247881,-921.91,0.00022612,2]
[313799618,1707730247889,-229.48297617,0.00022612,2]
[313799620,1707730247898,-500.0,0.00022612,2]
[313799622,1707730247907,-500.0,0.00022612,2]
[313799624,1707730247916,-500.0,0.00022612,2]
[313799626,1707730247927,-871.65,0.00022612,2]
[313799628,1707730247936,-567.16,0.00022612,2]
[313799630,1707730247945,-500.0,0.00022612,2]
[313799632,1707730247954,-855.49,0.00022612,2]
[313799634,1707730247963,-500.0,0.00022612,2]
[313799636,1707730247972,-500.0,0.00022612,2]
[313799638,1707730247981,-562.17,0.00022612,2]
[313799640,1707730247990,-519.39,0.00022612,2]
[313799642,1707730247999,-500.0,0.00022612,2]
[313799644,1707730248008,-500.0,0.00022612,2]
[313799646,1707730248017,-500.0,0.00022612,2]
[313799648,1707730248026,-613.77,0.00022612,2]
[313799650,1707730248035,-500.0,0.00022612,2]
[313799652,1707730248045,-500.0,0.00022612,2]
[313799654,1707730248054,-500.0,0.00022612,2]
[313799656,1707730248063,-500.0,0.00022612,2]
[313799658,1707730248075,-500.0,0.00022612,2]
[313799660,1707730248084,-1941.85,0.00022612,2]
[313799662,1707730248095,-500.0,0.00022612,2]
[313799664,1707730248104,-500.0,0.00022612,2]
[313799666,1707730248113,-528.88350383,0.00022612,2]
[313799668,1707730248122,-500.0,0.00022612,2]
[313799670,1707730248132,-500.0,0.00022612,2]
[313799672,1707730248141,-500.0,0.00022612,2]
[313799674,1707730248150,-571.61,0.00022612,2]
[313799676,1707730248159,-891.35,0.00022612,2]
[313799678,1707730248170,-500.0,0.00022612,2]
[313799680,1707730248179,-500.0,0.00022612,2]
[313799682,1707730248188,-500.0,0.00022612,2]
[313799684,1707730248197,-500.0,0.00022612,2]
[313799686,1707730248206,-500.0,0.00022612,2]
[313799688,1707730248216,-500.0,0.00022612,2]
[313799690,1707730248225,-500.0,0.00022612,2]
[313799692,1707730248234,-708.93,0.00022612,2]
[313799694,1707730248242,-500.0,0.00022612,2]
[313799696,1707730248251,-1522.87,0.00022612,2]
[313799698,1707730248260,-500.0,0.00022612,2]
[313799700,1707730248270,-500.0,0.00022612,2]
[313799702,1707730248279,-500.0,0.00022612,2]
[313799704,1707730248288,-500.0,0.00022612,2]
[313799706,1707730248298,-500.0,0.00022612,2]
[313799708,1707730248307,-500.0,0.00022612,2]
[313799710,1707730248316,-500.0,0.00022612,2]
[313799712,1707730248325,-500.0,0.00022612,2]
[313799714,1707730248334,-500.0,0.00022612,2]
[313799716,1707730248343,-500.0,0.00022612,2]
[313799718,1707730248351,-899.99,0.00022612,2]
[313799720,1707730248360,-500.0,0.00022612,2]
[313799722,1707730248369,-500.0,0.00022612,2]
[313799724,1707730248379,-783.6,0.00022612,2]
[313799726,1707730248387,-1050.01,0.00022612,2]
[313799728,1707730248396,-500.0,0.00022612,2]
[313799730,1707730248405,-925.41,0.00022612,2]
[313799732,1707730248415,-500.0,0.00022612,2]
[313799734,1707730248423,-500.0,0.00022612,2]
[313799736,1707730248433,-500.0,0.00022612,2]
[313799738,1707730248441,-500.0,0.00022612,2]
[313799740,1707730248451,-500.0,0.00022612,2]
[313799742,1707730248461,-500.0,0.00022612,2]
[313799744,1707730248470,-542.59,0.00022612,2]
[313799746,1707730248479,-500.0,0.00022612,2]
[313799748,1707730248489,-500.0,0.00022612,2]
[313799750,1707730248498,-500.0,0.00022612,2]
[313799774,1707730248705,-677.64,0.00022612,2]
[313799776,1707730248715,-500.0,0.00022612,2]
[313799778,1707730248724,-892.0,0.00022612,2]
[313799780,1707730248733,-500.0,0.00022612,2]
[313799782,1707730248742,-500.0,0.00022612,2]
[313799784,1707730248751,-500.0,0.00022612,2]
[313799786,1707730248760,-628.23,0.00022612,2]
[313799788,1707730248768,-500.0,0.00022612,2]
[313799790,1707730248777,-500.0,0.00022612,2]
[313799792,1707730248786,-500.0,0.00022612,2]
[313799794,1707730248795,-552.67,0.00022612,2]
[313799796,1707730248804,-500.0,0.00022612,2]
[313799798,1707730248813,-500.0,0.00022612,2]
[313799799,1707730248822,-500.0,0.00022612,2]
[313799801,1707730248832,-1384.3,0.00022612,2]
[313799803,1707730248841,-881.22,0.00022612,2]
[313799804,1707730248850,-500.0,0.00022612,2]
[313799805,1707730248858,-500.0,0.00022612,2]
[313799806,1707730248867,-606.89,0.00022612,2]
[313799807,1707730248877,-614.27,0.00022612,2]
[313799808,1707730248886,-907.05,0.00022612,2]
[313799809,1707730248896,-500.0,0.00022612,2]
[313799810,1707730248905,-500.0,0.00022612,2]
[313799811,1707730248915,-500.0,0.00022612,2]
[313799812,1707730248924,-500.0,0.00022612,2]
[313799813,1707730248933,-574.17,0.00022612,2]
[313799814,1707730248943,-1253.3,0.00022612,2]
[313799815,1707730248953,-748.26,0.00022612,2]
[313799816,1707730248963,-545.7,0.00022612,2]
[313799817,1707730248973,-500.0,0.00022612,2]
[313799818,1707730248982,-500.0,0.00022612,2]
[313799819,1707730248994,-607.87222037,0.00022612,2]
[313799820,1707730249003,-500.29,0.00022612,2]
[313799821,1707730249012,-787.74,0.00022612,2]
[313799822,1707730249022,-1068.7,0.00022612,2]
[313799823,1707730249031,-604.5,0.00022612,2]
[313799824,1707730249041,-500.0,0.00022612,2]
[313799825,1707730249050,-505.01,0.00022612,2]
[313799826,1707730249060,-514.38,0.00022612,2]
[313799827,1707730249070,-552.0,0.00022612,2]
[313799828,1707730249080,-1304.84,0.00022612,2]
[313799829,1707730249092,-524.03,0.00022612,2]
[313799830,1707730249102,-566.62,0.00022612,2]
[313799831,1707730249115,-836.72,0.00022612,2]
[313799832,1707730249125,-500.0,0.00022612,2]
[313799833,1707730249134,-577.46,0.00022612,2]
[313799834,1707730249144,-698.45,0.00022612,2]
[313799835,1707730249153,-615.51,0.00022612,2]
[313799836,1707730249164,-500.0,0.00022612,2]
[313799837,1707730249174,-536.97,0.00022612,2]
[313799838,1707730249183,-558.66,0.00022612,2]
[313799839,1707730249192,-906.18,0.00022612,2]
[313799840,1707730249202,-854.92,0.00022612,2]
[313799841,1707730249211,-500.0,0.00022612,2]
[313799842,1707730249221,-500.0,0.00022612,2]
[313799843,1707730249230,-500.0,0.00022612,2]
[313799844,1707730249239,-500.0,0.00022612,2]
[313799845,1707730249248,-500.0,0.00022613,2]
[313799846,1707730249258,-528.76944888,0.00022613,2]
[313799847,1707730249268,-500.0,0.00022613,2]
[313799848,1707730249277,-1000.0,0.00022613,2]
[313799849,1707730249287,-500.0,0.00022613,2]
[313799850,1707730249296,-500.0,0.00022613,2]
[313799851,1707730249305,-500.0,0.00022613,2]
[313799852,1707730249314,-500.0,0.00022613,2]
[313799853,1707730249323,-500.0,0.00022613,2]
[313799854,1707730249332,-500.0,0.00022613,2]
[313799855,1707730249341,-500.0,0.00022613,2]
[313799856,1707730249350,-500.0,0.00022613,2]
[313799857,1707730249359,-500.0,0.00022613,2]
[313799858,1707730249368,-500.0,0.00022613,2]
[313799859,1707730249377,-350.8,0.00022613,2]
[313799860,1707730249386,-317.35738398,0.00022613,2]
[313799861,1707730249395,-500.0,0.00022613,2]
[313799862,1707730249404,-500.0,0.00022613,2]
[313799863,1707730249413,-500.0,0.00022613,2]
[313799864,1707730249422,-500.0,0.00022613,2]
[313799865,1707730249433,-500.0,0.00022613,2]
[313799866,1707730249442,-500.0,0.00022613,2]
[313799867,1707730249452,-500.0,0.00022613,2]
[313799868,1707730249462,-500.0,0.00022613,2]
[313799869,1707730249471,-948.44,0.00022613,2]
[313799870,1707730249480,-500.0,0.00022613,2]
[313799871,1707730249490,-500.0,0.00022613,2]
[313799872,1707730249499,-500.0,0.00022613,2]
[313799873,1707730249508,-500.0,0.00022613,2]
[313799874,1707730249517,-500.0,0.00022613,2]
[313799875,1707730249526,-584.5,0.00022613,2]
[313799876,1707730249536,-500.0,0.00022613,2]
[313799877,1707730249545,-500.0,0.00022613,2]
[313799878,1707730249556,-500.0,0.00022613,2]
[313799879,1707730249565,-567.92,0.00022613,2]
[313799880,1707730249573,-500.0,0.00022613,2]
[313799881,1707730249582,-500.0,0.00022613,2]
[313799882,1707730249592,-500.0,0.00022613,2]
[313799883,1707730249601,-500.0,0.00022613,2]
[313799884,1707730249610,-500.0,0.00022613,2]
[313799885,1707730249619,-500.0,0.00022613,2]
[313799886,1707730249628,-500.0,0.00022613,2]
[313799887,1707730249637,-500.0,0.00022613,2]
[313799888,1707730249646,-500.0,0.00022613,2]
[313799889,1707730249656,-500.0,0.00022613,2]
[313799890,1707730249665,-500.0,0.00022613,2]
[313799891,1707730249674,-500.0,0.00022613,2]
[313799892,1707730249683,-500.0,0.00022613,2]
[313799893,1707730249692,-500.0,0.00022613,2]
[313799894,1707730249701,-500.0,0.00022613,2]
[313799895,1707730249712,-500.0,0.00022613,2]
[313799896,1707730249722,-735.33,0.00022613,2]
[313799897,1707730249731,-607.82,0.00022613,2]
[313799898,1707730249741,-512.13,0.00022624,2]
[313799899,1707730249750,-2677.63910772,0.00022656,2]
[313799900,1707730249759,-198.702,0.00022658,2]
[313799901,1707730249768,-198.702,0.00022658,2]